Cogmind - Beta 14 @@@ ROGUE MODE // 2025.01.03 @ 22:08:53 Player: FenRhew Result: Destroyed self with Grenade Launcher Performance ------------- Evolutions (0) 0 Regions Visited (3) 600 Robots Destroyed (30) 150 Value Destroyed (704) 704 Prototype IDs (0) 0 Alien Tech Used (0) 0 Bonus (-30) -30 TOTAL SCORE: 1424 Bonus ------- Follower Combat Kills 30 Friendly Fire -60 Cogmind --------- Core Integrity 0/250 Matter 91/300 Energy 146/150 System Corruption 0% Temperature Cool (0) Movement Rolling (110) Location -10/Subcaves Parts ------- > --- POWER (1) -------- Light Angular Momentum Engine > --- PROPULSION (2) --- Subdweller Monowheel Subdweller Monowheel > --- UTILITY (2) ------ Scrap Shield > --- WEAPON (2) ------- Slug Cannon Grenade Launcher > --- INVENTORY (5) ---- Light Ion Engine Improved Heat Sink Small Storage Unit Improved Terrain Scanner Multitool Peak State ------------ > --- POWER ------------ Light Angular Momentum Engine > --- PROPULSION ------- Carbon-fiber Leg Carbon-fiber Leg > --- UTILITY ---------- Scrap Shield > --- WEAPON ----------- Subdweller Beam Cannon Grenade Launcher > --- INVENTORY -------- Light Ion Engine Improved Heat Sink Small Storage Unit Improved Terrain Scanner Multitool [Rating: 19] Favorites ----------- Power Light Angular Momentum Engine Engine Light Angular Momentum Engine Propulsion Improved Aluminum Leg Treads Light Treads Leg Improved Aluminum Leg Wheel Subdweller Monowheel Utility Small Storage Unit Device Sensor Array Storage Small Storage Unit Processor Salvage Targeting Computer Protection Scrap Shield Weapon Assault Rifle Energy Gun Spread Laser Energy Cannon Subdweller Beam Cannon Ballistic Gun Assault Rifle Ballistic Cannon Slug Cannon Launcher Grenade Launcher Special Weapon Multitool Build | -11 -10 -10 -10 ------- Run | Yrd Mat Min Sub Slots Evolved . | . . . . Power . | . . . . Propulsion . | . . . . Utility . | . . . . Weapon . | . . . . Parts Attached 44 | 6 6 6 26 Power 7 | 1 1 3 2 Engine 7 | 1 1 3 2 Core . | . . . . Reactor . | . . . . Propulsion 17 | 2 2 . 13 Treads 2 | 2 . . . Leg 6 | . 2 . 4 Wheel 9 | . . . 9 Hover . | . . . . Flight . | . . . . Utility 5 | 1 2 . 2 Device 1 | . 1 . . Storage 1 | 1 . . . Processor 1 | . 1 . . Hackware . | . . . . Protection 2 | . . . 2 Artifact . | . . . . Weapon 15 | 2 1 3 9 Energy Gun 4 | . . 3 1 Energy Cannon 1 | . . . 1 Ballistic Gun 6 | 2 1 . 3 Ballistic Cannon 1 | . . . 1 Launcher 2 | . . . 2 Special Weapon 1 | . . . 1 Impact Weapon . | . . . . Slashing Weapon . | . . . . Piercing Weapon . | . . . . Special Melee Weapon . | . . . . Unidentified Prototypes . | . . . . Parts Lost 3 | . . 2 1 Power 3 | . . 2 1 Propulsion . | . . . . Utility . | . . . . Weapon . | . . . . Highest Loss Streak 1 | . . 1 1 To Critical Strikes . | . . . . Average Slot Usage (%) 92 | . 99 97 86 Engine 13 | . 14 11 13 Leg 15 | . 27 28 4 Wheel 12 | . . . 23 Device 7 | . 11 14 1 Storage 7 | . 14 14 1 Protection 6 | . . . 12 Energy Gun 7 | . . 22 4 Energy Cannon 3 | . . . 6 Ballistic Gun 11 | . 28 5 5 Launcher 5 | . . . 11 Peak Build Rating 19 | 6 11 15 19 Average Rating 13 | 4 10 12 16 On Entrance 7 | . 6 10 15 Naked Turns . | . . . . Heaviest Build 38 | 12 15 20 38 Greatest Support 40 | 40 40 26 40 Greatest Overweight (x) 12 | 2 . . 12 Average Overweight (x) . | . . . . Largest Inventory Capacity 8 | 8 8 8 8 Average Capacity 6 | 7 8 8 5 Most Carried 8 | 8 8 8 8 Average Carried 6 | 3 7 7 5 Final Capacity 8 | 8 8 8 5 Final Carried 8 | 6 8 8 5 Class Distribution -------------------- 55% | Mutant 42% | Subdweller-Mutant Dominant Class ---------------- Mutant | -10/Materials Mutant | -10/Mines Subdweller-Mutant | -10/Subcaves Resources | -11 -10 -10 -10 ----------- Run | Yrd Mat Min Sub Matter Collected 1229 | 208 458 222 341 Remotely . | . . . . Salvage Created 856 | . 433 261 162 Parts 60 | . 22 26 12 Haulers Intercepted 2 | . 2 . . Recyclers Shooed . | . . . . Parts Field Recycled . | . . . . Retrieved Matter . | . . . . Parts Self-Destructed 9 | . . . 9 Prevented . | . . . . Kills | -11 -10 -10 -10 ------- Run | Yrd Mat Min Sub Combat Hostiles Destroyed 25 | . 9 10 6 Guns 23 | . 9 10 4 AOE 2 | . . . 2 Classes Destroyed 8 | . 4 2 2 Tunneler 1 | . . 1 . Hauler 2 | . 2 . . Turret 1 | . . . 1 Watcher 1 | . 1 . . Swarmer 12 | . 3 7 2 Grunt 7 | . 6 1 . Sentry 2 | . . 2 . Subdweller 4 | . . . 4 Best Kill Streak 3 | . 2 3 3 Combat Bots Only 3 | . 2 3 2 Max Kills in Single Turn 1 | . 1 1 1 Gunslinging . | . . . . Exploded 1 | . . . 1 Melee . | . . . . Uniques/NPCs Destroyed . | . . . . Combat | -11 -10 -10 -10 -------- Run | Yrd Mat Min Sub Hostile Shots Fired 159 | . 65 44 50 Missed 55 | . 24 16 15 Damage Taken 1385 | . 494 265 626 Core 258 | . 129 68 61 Absorbed by Shields . | . . . . Core Remaining (%) 100 | 100 . . . Volleys Fired 144 | . 77 22 45 Largest 2 | . 2 2 2 Hottest 130 | . 40 130 110 Shots Fired 267 | . 154 44 69 Gun 234 | . 154 44 36 Cannon 11 | . . . 11 Launcher 20 | . . . 20 Special 2 | . . . 2 Kinetic 196 | . 154 18 24 Thermal 37 | . . 15 22 Explosive 20 | . . . 20 Electromagnetic 14 | . . 11 3 Robot Hit Streak 9 | . 9 7 7 Robot Miss Streak 9 | . 9 6 3 Penetration Max . | . . . . Secondary Targets 2 | . 1 1 . Max Gunslinging Chain 1 | . 1 1 . Shots Hit Robots 127 | . 74 26 27 Core Hits 68 | . 22 24 22 Critical Kills . | . . . . Critical Parts Destroyed 3 | . 2 . 1 Critical Strikes 3 | . 2 . 1 Destroy 3 | . 2 . 1 Melee Attacks . | . . . . Impact . | . . . . Slashing . | . . . . Piercing . | . . . . Sneak Attacks . | . . . . Combat Hostiles . | . . . . Follow-up Attacks . | . . . . Damage Inflicted 2164 | . 961 390 813 Guns 1736 | . 960 345 431 Cannons . | . . . . Explosions 427 | . . 45 382 Melee . | . . . . Ramming 1 | . 1 . . Kinetic 1289 | . 960 98 231 Thermal 392 | . . 203 189 Explosive 382 | . . . 382 Electromagnetic 100 | . . 89 11 Impact . | . . . . Slashing . | . . . . Piercing . | . . . . Highest Corruption . | . . . . Average Corruption . | . . . . Corruption Purged . | . . . . Corruption Blocked . | . . . . Overload Shots . | . . . . Overflow Damage . | . . . . Projectiles . | . . . . Explosions . | . . . . Melee . | . . . . Knockbacks . | . . . . Impact . | . . . . Kinetic . | . . . . Secondary . | . . . . Self-Inflicted Damage 10 | . . . 10 Shots 1 | . . . 1 Rammed . | . . . . Targets Rammed 1 | . 1 . . Kicked 1 | . 1 . . Crushed . | . . . . Highest Temperature 285 | . 20 285 . Average Temperature 97 | . 3 122 . Received Heat Transfer 423 | . 255 54 114 Siege Activations . | . . . . Robots Corrupted . | . . . . Combat Hostiles . | . . . . Parts Fried . | . . . . Impact Corruptions . | . . . . Robots Melted . | . . . . Combat Hostiles . | . . . . Parts Melted 1 | . . 1 . Heat Transferred 465 | . . 240 225 Parts Sabotaged . | . . . . Parts Stolen . | . . . . Parts Stripped . | . . . . Power Chain Reactions 1 | . . 1 . Alert | -11 -10 -10 -10 ------- Run | Yrd Mat Min Sub Peak Influence 285 | . 160 285 . Initial 30 | . . 30 . Average 98 | . 76 141 . Maximum Alert Level 1 | . . 1 . Low Security (%) 90 | 100 100 75 . Level 1 9 | . . 24 . Level 2 . | . . . . Level 3 . | . . . . Level 4 . | . . . . Level 5 . | . . . . High Security . | . . . . Max Security . | . . . . Squads Dispatched 3 | . 3 . . Investigation 1 | . 1 . . Extermination . | . . . . Reinforcement 2 | . 2 . . Assault . | . . . . Garrison . | . . . . Intercept . | . . . . Searches Triggered . | . . . . Construction Impeded . | . . . . Haulers Reinforced . | . . . . Active Scanning Responses . | . . . . Cargo Convoy Interrupts . | . . . . Stealth | -11 -10 -10 -10 --------- Run | Yrd Mat Min Sub Distress Signals 2 | . 2 . . Communications Jammed . | . . . . Distress Signals . | . . . . Times Spotted 57 | . 19 13 25 Peak Tracking Total 4 | . 4 3 4 Tactical Retreats 5 | . 1 2 2 Traps | -11 -10 -10 -10 ------- Run | Yrd Mat Min Sub Traps Triggered 2 | . 2 . . Indirectly . | . . . . Trap Hack Attempts . | . . . . Triggered . | . . . . Disarmed . | . . . . Reprogrammed . | . . . . Reused . | . . . . Traps Extracted . | . . . . Installed . | . . . . Triggered . | . . . . Machines | -11 -10 -10 -10 ---------- Run | Yrd Mat Min Sub Machines Disabled 3 | . . . 3 Max in Single Turn 3 | . . . 3 Machines Repaired . | . . . . Machines Dismantled . | . . . . Machines Sabotaged . | . . . . Overloaded Fab Kills . | . . . . Hacking | -11 -10 -10 -10 --------- Run | Yrd Mat Min Sub Machines Accessed 5 | . 5 . . Terminals 5 | . 5 . . Fabricators . | . . . . Repair Stations . | . . . . Recycling Units . | . . . . Scanalyzers . | . . . . Garrison Access . | . . . . Total Hacks 14 | . 14 . . Successful 4 | . 4 . . Failed 10 | . 10 . . Catastrophic 5 | . 5 . . Database Lockouts . | . . . . Manual 7 | . 7 . . Terminals 14 | . 14 . . Fabricators . | . . . . Repair Stations . | . . . . Recycling Units . | . . . . Scanalyzers . | . . . . Garrison Access . | . . . . Terminal Hacks 4 | . 4 . . Alert Level 1 | . 1 . . Dispatch Records 1 | . 1 . . Recall Investigation 1 | . 1 . . Zone Layout 1 | . 1 . . Fabricator Hacks . | . . . . Repair Station Hacks . | . . . . Recycling Unit Hacks . | . . . . Scanalyzer . | . . . . Garrison Access Hacks . | . . . . Unauthorized Hacks . | . . . . Terminals . | . . . . Fabricators . | . . . . Repair Stations . | . . . . Recycling Units . | . . . . Scanalyzers . | . . . . Garrison Access . | . . . . Data Cores Recovered . | . . . . Used . | . . . . Hacking Detections 4 | . 4 . . Full Trace Events . | . . . . Feedback Events . | . . . . Feedback Blocked . | . . . . Robot Schematics Acquired . | . . . . Robots Built . | . . . . Authchips . | . . . . Time . | . . . . Total Robot Build Rating . | . . . . Part Schematics Acquired . | . . . . Parts Built . | . . . . Authchips . | . . . . Time . | . . . . Total Part Build Rating . | . . . . Parts Repaired . | . . . . Time . | . . . . Parts Recycled . | . . . . Recycled Matter . | . . . . Retrieved Matter . | . . . . Retrieved Components . | . . . . Parts Scanalyzed . | . . . . Part Schematics Acquired . | . . . . Parts Damaged . | . . . . Bothacking | -11 -10 -10 -10 ------------ Run | Yrd Mat Min Sub Used RIF Installer . | . . . . Robots Hacked . | . . . . Non-combat . | . . . . Combat . | . . . . Robot Hacks Applied . | . . . . Relay Couplers Released . | . . . . Fabnet Peak Effective % . | . . . . Robots Rewired . | . . . . Allies Hacked . | . . . . Hacks Repelled . | . . . . Allies | -11 -10 -10 -10 -------- Run | Yrd Mat Min Sub Total Allies 2 | . . 2 . Largest Group 2 | . . 2 2 Highest-Rated Group 45 | . . 45 45 Highest-Rated Ally 31 | . . 31 31 Total Orders . | . . . . Ally Attacks 14 | . . . 14 Total Damage 279 | . . . 279 Kills 1 | . . . 1 Allies Corrupted . | . . . . Allies Melted . | . . . . Intel | -11 -10 -10 -10 ------- Run | Yrd Mat Min Sub Robot Analysis Total . | . . . . Derelict Logs Recovered 4 | . . 3 1 Drone Launches . | . . . . Drone Recoveries . | . . . . Exploration | -11 -10 -10 -10 ------------- Run | Yrd Mat Min Sub Turns Passed 3504 | 115 911 716 1762 Spaces Moved 2106 | 65 528 463 1050 Core 71 | 8 . . 63 Treads 69 | 57 12 . . Legs 1160 | . 516 463 181 Wheels 806 | . . . 806 Hover . | . . . . Flight . | . . . . Fastest Speed 50 | 50 120 120 107 Average Speed 134 | 149 120 120 146 Slowest Speed 650 | 160 160 120 650 Overloaded Moves . | . . . . Propulsion Burnouts . | . . . . Robots Hopped . | . . . . Cave-ins Triggered . | . . . . Exploration Rate (%) 51 | 5 78 62 61 Regions Visited 3 Branch Regions 2 Pre-discovered Areas 2 | . . 1 1 Known Exits Taken 1 | . . 1 . Unknown Exits Taken 2 | 1 1 . . Scrap Searched . | . . . . Spaces Dug . | . . . . Terrain Destroyed 91 | . . 6 85 Melee . | . . . . Projectile . | . . . . AOE 91 | . . 6 85 Terrain Rammed . | . . . . Walls Destroyed . | . . . . Machines Disabled . | . . . . Actions | -11 -10 -10 -10 --------- Run | Yrd Mat Min Sub Total 2518 | 81 648 580 1209 Wait 151 | 3 22 77 49 Move 2103 | 64 527 462 1050 Hop . | . . . . Pick Up 24 | 8 6 6 4 Fast Attach 30 | 4 5 3 18 Attach 4 | 2 . 1 1 Detach . | . . . . Swap 10 | . 1 2 7 Drop 44 | . 9 7 28 Fire 144 | . 77 22 45 Melee . | . . . . Ram . | . . . . Kick 1 | . 1 . . Crush . | . . . . Escape Stasis . | . . . . Rewire . | . . . . Trap . | . . . . Miscellaneous 7 | . . . 7 Route ------- -11/Scrapyard -10/Materials (discovered 3 exits: [*Mat] / [*Min x2]) -10/Mines -10/Subcaves (discovered 2 exits: [*Mat] / [*Rec]) History --------- Turn | Location | Event 9 | -11/Scrapyard | Discovered new exit (range 15) 116 | -11/Scrapyard | Entered Materials 317 | -10/Materials | Build established: Mutant 533 | -10/Materials | Discovered new exit (range 16) 648 | -10/Materials | Discovered new exit (range 15) 928 | -10/Materials | Core integrity fell below 50% 1009 | -10/Materials | Discovered new exit (range 16) 1027 | -10/Materials | Entered Mines 1063 | -10/Mines | Learned location of Recycling (-7) 1076 | -10/Mines | Received a Rocket Launcher from a helpful Derelict 1091 | -10/Mines | Identified exit to Subcaves 1160 | -10/Mines | Joined a pair of Derelicts in attacking an 0b10 outpost 1225 | -10/Mines | Learned location of 1 exit from Materials 1743 | -10/Mines | Entered Subcaves 1743 | -10/Subcaves | Accompanied by 2 allies 1748 | -10/Subcaves | Led the pair of lost Derelicts to an unsafe place 1809 | -10/Subcaves | Ambushed by swarm of Subdwellers 1816 | -10/Subcaves | Ambushed by Subdwellers from Twisted Machinery 1955 | -10/Subcaves | Core integrity fell below 20% 2086 | -10/Subcaves | Discovered new exit (range 5) 2205 | -10/Subcaves | Discovered new exit (range 11) 2289 | -10/Subcaves | Build established: Subdweller-Mutant 2351 | -10/Subcaves | Learned Materials stockpile data 2588 | -10/Subcaves | Ambushed by Subdwellers from Twisted Machinery 2905 | -10/Subcaves | A swath of the cavern ceiling suddenly collapsed 3480 | -10/Subcaves | Shifting Twisted Machinery released Slug Cannon 3492 | -10/Subcaves | Shifting Twisted Machinery released Flamer 3492 | -10/Subcaves | Learned location of Zion (-7) 3492 | -10/Subcaves | Met a Zionite searching for "candidates" 3505 | -10/Subcaves | Destroyed self with Grenade Launcher Last Messages --------------- WA-CLV(u) builds Twisted Machinery. Subatomizers dissect the Disposable Heat Sink. Acquired 45 matter. Dropped Broken Sub. Monowheel. Acquired Carbon-fiber Leg. Dropped Broken Sub. Monowheel. Acquired Carbon-fiber Leg. Dropped Carbon-fiber Leg. Acquired Sub. Monowheel. Slug Cannon falls loose from the Twisted Machinery. Dropped Sub. Beam Cannon. Acquired Slug Cannon. Flamer falls loose from the Twisted Machinery. AJ-RRF(z): "Hey you! It's really dangerous down here, I feel that you could die at any moment. For your health and safety might I suggest a trip to Zion?" World map updated: -7/Zion. Map ----- +----------------------------------------------------+ | ??????????????????????????????????????????????#""# | | ??????????????????????????????????????????????#""# | | ??????????????????????????????????????????????# ## | | ?????????????????????????????????????????????????# | | ?????????????????????????????????????????????????? | | ?????????????????????????????????????????????????? | | ?????????????????????????????????????????????????? | | ??????????????????????????????????#???????????#### | | ??????????????????????????????##? ??????# ## | | ?????????????????????????#??# ## ????# | | ????????????????????????# ?? ????# | | ???????????????????????? ## ## | | ???????????????????????? ## # #??? | | ???????????????????????? #??##????# | | ????????????????????????? ?????????# | | ????????????????????????? ????????##?# | | ?????????????????????????# ?????????## ## | | ?????????????????????????# ???????????# # | | ????????????????????????##"" ?????????????# | | ???????????????????????## "| ?????????????###??# | | ???????????????????????# #?????????????## #??# | | ???????????????????????# #?????????????# #?## | | ??????????????????????## #?????????????## #?# | | ??????????????????????# #????????????## #?# | | ??????????????????????? ###??????????# #### | | ???????????????????????##@ "##????????## ### | | ???????????????????????#h ] ########## ##] | | ???????????????????????# ## ## ## & | | ???????????????????????## # # ## " | | ????????????????????????## # ## " & | | ?????????????????????????# ## # # " | | ?????????????????????????# # ### " | | ?????????????????????????# # ###?#"" | | ?????????????????????????#### # ### ##???#" | | ????????????????????????????### ##?# ##???#" "" | | ??????????????????????????????## ??# #???## "" | | ??????????????????????###?????# ##?# #????## "" | | ##??????#####?###?????# #????## #### ##?????##"" | | "##????## ### ##?????# ###### ## ##??????# | | #"####### #?????# ## ## #??????# | | #" #### # ##????# ##??????## | | # #????## # ##???????# " | | # #??##### ""##""##????????# | | ## #??# #?#[ #"""##""#????????## | | #### # # #?## ### ## ## #???????## | | ##### ##### #### ## " # ##???##### | | "" "#??# ### ### " ####????# ## | | "###"#??# #""" ##?##### ### | | ##??""#?# ## ## #"""" ### ## ### ## | | ????"#### ## # """"" """ ##### | +----------------------------------------------------+ Best States ------------- Heat Dissipation 25 Energy Generation 18 Energy Capacity 265 Matter Stores 300 Matter Capacity 300 Sight Range 16 Robot Scan Range 14 Terrain Scan Density 10 Armor Coverage 800 Evasion (%) 55 Recoil Reduction 2 Salvage Targeting 1 Item Schematics ----------------- None Robot Schematics ------------------ None Fabricated ------------ Nothing Alien Tech Used ----------------- None Achievements -------------- Dramatic Entrance GoHome() Challenges ------------ None Game ------ Seed AntimatterFlakDrive Manual? 0 Play Time 00:37:57 Cumulative 8.6 hours Start 2025.01.03 @ 21:33:36 End 2025.01.03 @ 22:08:53 Sessions 1 Manual Loads 0 Difficulty Rogue Special Mode None Game No. 6 Rogue 6 Adventurer 0 Explorer 0 Win Type - Total 0 Types 0/0/0/0/0/0/0/0/0 Lore% 10 Gallery% 13 Achievement% 13 Wizard Run 0 Options --------- Layout 1 ASCII 0 Keyboard 0 Movement Numpad Keybinds 0 Fullscreen 1 Font 24/Smallcaps Map View 50x35 Zoom Use 0% Tactical HUD 0 Map Filters NONE Filters NONE Steam 1 RUN: 480f85ef-5176-4990-9467-9f466f330166